fUST/lending_fUST_20250923
["ID","MTS","AMOUNT","RATE_DAILY","PERIOD"]
[387197191,1758637832796,-195.84300628,0.00019177,2]
[387197193,1758637832806,-196.8616335,0.00019177,2]
[387197195,1758637832815,-480.0,0.00019178,2]
[387197197,1758637832826,-480.0,0.00019178,2]
[387197198,1758637832835,-480.0,0.00019178,2]
[387197200,1758637832845,-480.0,0.00019178,2]
[387197202,1758637832855,-232.48256018,0.00019178,2]
[387197204,1758637832866,-480.0,0.00019178,2]
[387197207,1758637832876,-480.0,0.00019178,2]
[387197208,1758637832886,-480.0,0.00019178,2]
[387197210,1758637832896,-529.49612053,0.00019178,2]
[387197212,1758637832906,-480.0,0.00019178,2]
[387197214,1758637832917,-150.67942831,0.00019178,2]
[387197216,1758637832927,-480.0,0.00019178,2]
[387197218,1758637832936,-480.0,0.00019178,2]
[387197220,1758637832945,-480.0,0.00019178,2]
[387197222,1758637832955,-480.0,0.00019178,2]
[387197225,1758637832967,-480.0,0.00019178,2]
[387197226,1758637832978,-480.0,0.00019178,2]
[387197228,1758637832988,-480.0,0.00019178,2]
[387197229,1758637833003,-480.0,0.00019178,2]
[387197231,1758637833013,-480.0,0.00019178,2]
[387197233,1758637833022,-334.02587999,0.00019178,2]
[387197234,1758637833032,-480.0,0.00019178,2]
[387197235,1758637833042,-480.0,0.00019178,2]
[387197237,1758637833051,-486.15143106,0.00019178,2]
[387197239,1758637833062,-480.0,0.00019178,2]
[387197241,1758637833071,-1085.77,0.00019178,2]
[387197243,1758637833080,-480.0,0.00019178,2]
[387197245,1758637833090,-480.0,0.00019178,2]
[387197247,1758637833100,-480.0,0.00019178,2]
[387197249,1758637833110,-480.0,0.00019178,2]
[387197251,1758637833120,-480.0,0.00019178,2]
[387197253,1758637833130,-480.0,0.00019178,2]
[387197255,1758637833140,-480.0,0.00019178,2]
[387197257,1758637833153,-480.0,0.00019178,2]
[387197259,1758637833163,-480.0,0.00019178,2]
[387197261,1758637833173,-480.0,0.00019178,2]
[387197263,1758637833183,-272.42682186,0.00019178,2]
[387197265,1758637833192,-480.0,0.00019178,2]
[387197267,1758637833202,-480.0,0.00019178,2]
[387197269,1758637833212,-480.0,0.00019178,2]
[387197271,1758637833222,-480.0,0.00019178,2]
[387197273,1758637833231,-480.0,0.00019178,2]
[387197275,1758637833241,-480.0,0.00019178,2]
[387197277,1758637833251,-480.0,0.00019178,2]
[387197279,1758637833260,-480.0,0.00019178,2]
[387197281,1758637833270,-480.0,0.00019178,2]
[387197283,1758637833280,-480.34214228,0.00019178,2]
[387197285,1758637833290,-482.11192581,0.00019178,2]
[387197287,1758637833300,-480.0,0.00019178,2]
[387197289,1758637833310,-480.0,0.00019178,2]
[387197291,1758637833321,-500.0,0.00019178,2]
[387197293,1758637833331,-480.0,0.00019178,2]
[387197295,1758637833341,-480.0,0.00019178,2]
[387197297,1758637833351,-480.0,0.00019178,2]
[387197299,1758637833362,-520.04001828,0.00019178,2]
[387197301,1758637833372,-230.24,0.00019178,2]
[387197303,1758637833383,-182.89383219,0.00019178,2]
[387197305,1758637833393,-480.0,0.00019178,2]
[387197307,1758637833403,-480.0,0.00019178,2]
[387197309,1758637833413,-480.0,0.00019178,2]
[387197311,1758637833423,-480.0,0.00019178,2]
[387197312,1758637833433,-480.0,0.00019178,2]
[387197313,1758637833443,-480.0,0.00019178,2]
[387197314,1758637833453,-480.0,0.00019178,2]
[387197315,1758637833463,-476.63675022,0.00019178,2]
[387197316,1758637833473,-155.467892,0.00019178,2]
[387197318,1758637833483,-480.0,0.00019178,2]
[387197320,1758637833492,-480.0,0.00019178,2]
[387197322,1758637833502,-151.0,0.00019178,2]
[387197324,1758637833512,-151.0,0.00019178,2]
[387197325,1758637833523,-151.0,0.00019178,2]
[387197326,1758637833533,-480.0,0.00019178,2]
[387197327,1758637833543,-480.0,0.00019178,2]
[387197328,1758637833553,-480.0,0.00019178,2]
[387197329,1758637833563,-480.0,0.00019178,2]
[387197330,1758637833573,-480.0,0.00019178,2]
[387197331,1758637833583,-480.0,0.00019178,2]
[387197332,1758637833593,-155.20798604,0.00019178,2]
[387197333,1758637833603,-151.861881,0.00019178,2]
[387197334,1758637833614,-480.0,0.00019178,2]
[387197335,1758637833624,-480.0,0.00019178,2]
[387197336,1758637833634,-480.0,0.00019178,2]
[387197337,1758637833643,-151.0,0.00019178,2]
[387197338,1758637833653,-189.52236879,0.00019178,2]
[387197339,1758637833663,-480.0,0.00019178,2]
[387197340,1758637833673,-480.0,0.00019178,2]
[387197341,1758637833682,-480.0,0.00019178,2]
[387197342,1758637833691,-480.0,0.00019178,2]
[387197343,1758637833701,-480.0,0.00019178,2]
[387197344,1758637833711,-151.0,0.00019178,2]
[387197345,1758637833720,-480.0,0.00019178,2]
[387197346,1758637833730,-151.0,0.00019178,2]
[387197347,1758637833739,-480.0,0.00019178,2]
[387197348,1758637833749,-151.0,0.00019178,2]
[387197349,1758637833759,-480.0,0.00019178,2]
[387197350,1758637833769,-480.0,0.00019178,2]
[387197351,1758637833782,-480.0,0.00019178,2]
[387197352,1758637833792,-480.0,0.00019178,2]
[387197353,1758637833802,-7280.66,0.00019178,2]
[387197354,1758637833811,-480.0,0.00019178,2]
[387197355,1758637833823,-480.0,0.00019178,2]
[387197356,1758637833832,-480.0,0.00019178,2]
[387197357,1758637833842,-480.0,0.00019178,2]
[387197358,1758637833853,-522.43,0.00019178,2]
[387197359,1758637833863,-690.73,0.00019178,2]
[387197360,1758637833872,-480.0,0.00019178,2]
[387197361,1758637833882,-480.0,0.00019178,2]
[387197362,1758637833892,-151.0,0.00019178,2]
[387197363,1758637833904,-480.0,0.00019178,2]
[387197364,1758637833915,-152.223131,0.00019178,2]
[387197365,1758637833925,-480.0,0.00019178,2]
[387197366,1758637833935,-480.0,0.00019178,2]
[387197367,1758637833945,-480.0,0.00019178,2]
[387197368,1758637833954,-480.0,0.00019178,2]
[387197369,1758637833964,-480.0,0.00019178,2]
[387197370,1758637833974,-480.0,0.00019178,2]
[387197371,1758637833984,-480.0,0.00019178,2]
[387197372,1758637833993,-480.0,0.00019178,2]
[387197373,1758637834003,-480.0,0.00019178,2]
[387197374,1758637834013,-1093.76,0.00019178,2]
[387197375,1758637834023,-480.0,0.00019178,2]
[387197376,1758637834032,-480.0,0.00019178,2]
[387197377,1758637834042,-480.0,0.00019178,2]
[387197378,1758637834053,-480.0,0.00019178,2]
[387197379,1758637834063,-3624.1,0.00019178,2]
[387197380,1758637834073,-480.0,0.00019178,2]
[387197381,1758637834082,-480.0,0.00019178,2]
[387197382,1758637834091,-480.0,0.00019178,2]
[387197383,1758637834101,-770.1,0.00019178,2]
[387197384,1758637834115,-631.0,0.00019178,2]
[387197385,1758637834125,-480.0,0.00019178,2]
[387197386,1758637834135,-480.0,0.00019178,2]
[387197387,1758637834145,-480.0,0.00019178,2]
[387197388,1758637834154,-849.96,0.00019178,2]
[387197389,1758637834165,-168.9107605,0.00019178,2]
[387197390,1758637834174,-480.0,0.00019178,2]
[387197391,1758637834184,-1321.9,0.00019178,2]
[387197392,1758637834194,-480.0,0.00019178,2]
[387197393,1758637834203,-480.0,0.00019178,2]
[387197394,1758637834213,-480.0,0.00019178,2]
[387197395,1758637834223,-507.69755498,0.00019178,2]
[387197396,1758637834232,-480.0,0.00019178,2]
[387197397,1758637834337,-465.33916274,0.00019178,2]
[387197398,1758637834347,-530.29,0.00019178,2]
[387197399,1758637834357,-480.0,0.00019178,2]
[387197400,1758637834367,-480.0,0.00019178,2]
[387197401,1758637834377,-480.0,0.00019178,2]
[387197402,1758637834387,-480.0,0.00019178,2]
[387197403,1758637834397,-480.0,0.00019178,2]
[387197404,1758637834407,-480.0,0.00019178,2]
[387197405,1758637834418,-480.0,0.00019178,2]
[387197406,1758637834428,-679.28,0.00019178,2]
[387197407,1758637834438,-480.0,0.00019178,2]
[387197408,1758637834448,-480.0,0.00019178,2]
[387197409,1758637834458,-480.0,0.00019178,2]
[387197410,1758637834468,-480.0,0.00019178,2]
[387197411,1758637834478,-480.0,0.00019178,2]
[387197412,1758637834488,-480.0,0.00019178,2]
[387197413,1758637834497,-480.0,0.00019178,2]
[387197414,1758637834507,-502.47,0.00019178,2]
[387197415,1758637834517,-480.0,0.00019178,2]
[387197416,1758637834527,-240.40153264,0.00019178,2]
[387197417,1758637834537,-480.0,0.00019178,2]
[387197418,1758637834548,-480.0,0.00019178,2]
[387197419,1758637834559,-561.98762188,0.00019178,2]
[387197420,1758637834569,-480.0,0.00019178,2]
[387197421,1758637834578,-504.05339939,0.00019178,2]
[387197422,1758637834588,-480.0,0.00019178,2]
[387197423,1758637834598,-480.0,0.00019178,2]
[387197424,1758637834607,-480.0,0.00019178,2]
[387197425,1758637834617,-480.0,0.00019178,2]
[387197426,1758637834627,-158.878261,0.00019222,4]
[387197427,1758637834636,-151.485367,0.00019373,2]
[387197428,1758637834646,-151.0,0.00019373,2]
[387197429,1758637834656,-151.0,0.00019373,2]
[387197430,1758637834666,-151.0,0.00019373,2]
[387197431,1758637834676,-151.0,0.00019373,2]
[387197432,1758637834686,-152.251034,0.00019373,2]
[387197433,1758637834696,-151.0,0.00019373,2]
[387197434,1758637834705,-151.0,0.00019373,2]
[387197435,1758637834715,-151.697379,0.00019373,2]
[387197436,1758637834724,-151.0,0.00019373,2]
[387197437,1758637834733,-158.45591392,0.00019425,2]
[387197438,1758637834742,-978.0,0.00019442,2]
[387197439,1758637834751,-2159.0,0.00019442,2]
[387197440,1758637834760,-635.0,0.00019442,2]
[387197441,1758637834770,-410.0,0.00019442,2]
[387197442,1758637834780,-152.296791,0.00019442,2]
[387197443,1758637834790,-151.0,0.00019442,2]
[387197444,1758637834799,-151.0,0.00019442,2]
[387197445,1758637834809,-151.0,0.00019442,2]
[387197446,1758637834819,-480.0,0.00019452,2]
[387197447,1758637834828,-480.0,0.00019452,2]
[387197448,1758637834837,-1085.77,0.00019452,2]
[387197449,1758637834846,-151.0,0.00019452,2]
[387197450,1758637834857,-151.0,0.00019452,2]
[387197451,1758637834866,-480.0,0.00019452,2]
[387197452,1758637834875,-480.0,0.00019452,2]
[387197453,1758637834883,-480.0,0.00019452,2]
[387197454,1758637834893,-480.0,0.00019452,2]
[387197455,1758637834902,-480.0,0.00019452,2]
[387197456,1758637834911,-480.0,0.00019452,2]
[387197457,1758637834920,-480.0,0.00019452,2]
[387197458,1758637834929,-157.208771,0.00019452,2]
[387197459,1758637834938,-153.305078,0.00019452,2]
[387197460,1758637834948,-151.0,0.00019452,2]
[387197461,1758637834958,-480.0,0.00019452,2]
[387197462,1758637834968,-151.0,0.00019452,2]
[387197463,1758637834977,-152.175508,0.00019452,2]
[387197464,1758637834986,-480.0,0.00019452,2]
[387197465,1758637834996,-7280.66,0.00019452,2]
[387197466,1758637835005,-480.0,0.00019452,2]
[387197467,1758637835015,-522.43,0.00019452,2]
[387197468,1758637835024,-690.73,0.00019452,2]
[387197469,1758637835033,-480.0,0.00019452,2]
[387197470,1758637835042,-151.0,0.00019452,2]
[387197471,1758637835052,-1093.76,0.00019452,2]
[387197472,1758637835061,-480.0,0.00019452,2]
[387197473,1758637835070,-3624.1,0.00019452,2]
[387197474,1758637835079,-770.1,0.00019452,2]
[387197475,1758637835089,-631.0,0.00019452,2]
[387197476,1758637835098,-849.96,0.00019452,2]
[387197477,1758637835107,-480.0,0.00019452,2]
[387197478,1758637835117,-1321.9,0.00019452,2]
[387197479,1758637835126,-480.0,0.00019452,2]
[387197480,1758637835135,-151.0,0.00019452,2]
[387197481,1758637835144,-530.29,0.00019452,2]
[387197482,1758637835154,-151.0,0.00019452,2]
[387197483,1758637835163,-480.0,0.00019452,2]
[387197484,1758637835172,-480.0,0.00019452,2]
[387197485,1758637835182,-480.0,0.00019452,2]
[387197486,1758637835191,-679.28,0.00019452,2]
[387197487,1758637835200,-480.0,0.00019452,2]
[387197488,1758637835209,-151.0,0.00019452,2]
[387197489,1758637835219,-151.0,0.00019452,2]
[387197490,1758637835228,-217.997884,0.00019452,2]
[387197491,1758637835237,-151.0,0.00019452,2]
[387197492,1758637835251,-217.997884,0.00019452,2]
[387197493,1758637835266,-217.997884,0.00019452,2]
[387197494,1758637835279,-217.997884,0.00019452,2]
[387197495,1758637835289,-480.0,0.00019452,2]
[387197496,1758637835302,-151.0,0.00019452,2]
[387197497,1758637835314,-502.47,0.00019452,2]
[387197498,1758637835326,-151.0,0.00019452,2]
[387197499,1758637835339,-480.0,0.00019452,2]
[387197500,1758637835353,-151.0,0.00019452,2]
[387197501,1758637835365,-151.0,0.00019452,2]
[387197502,1758637835377,-151.0,0.00019626,2]
[387197503,1758637835388,-13656.78058338,0.00019626,2]
[387197504,1758637835399,-152.733006,0.00019726,2]
[387197505,1758637835413,-151.0,0.00019726,2]
[387197506,1758637835426,-569.18840441,0.00019726,2]
[387197507,1758637835437,-152.797043,0.00019726,2]
[387197508,1758637835450,-152.184519,0.00019726,2]
[387197509,1758637835463,-480.0,0.00019726,2]
[387197510,1758637835475,-1085.77,0.00019726,2]
[387197511,1758637835488,-151.0,0.00019726,2]
[387197512,1758637835500,-480.0,0.00019726,2]
[387197513,1758637835512,-151.0,0.00019726,2]
[387197514,1758637835526,-324.66409079,0.00019726,2]
[387197515,1758637835538,-151.0,0.00019726,2]
[387197516,1758637835550,-151.0,0.00019726,2]
[387197517,1758637835563,-480.0,0.00019726,2]
[387197518,1758637835575,-480.0,0.00019726,2]
[387197519,1758637835588,-480.0,0.00019726,2]
[387197520,1758637835601,-480.0,0.00019726,2]
[387197521,1758637835614,-456.75447438,0.00019726,2]
[387197522,1758637835627,-7280.66,0.00019726,2]
[387197523,1758637835639,-522.43,0.00019726,2]
[387197524,1758637835651,-690.73,0.00019726,2]
[387197525,1758637835661,-480.0,0.00019726,2]
[387197526,1758637835673,-1093.76,0.00019726,2]
[387197527,1758637835685,-151.0,0.00019726,2]
[387197528,1758637835700,-480.0,0.00019726,2]
[387197529,1758637835712,-3624.1,0.00019726,2]
[387197530,1758637835723,-151.0,0.00019726,2]
[387197531,1758637835733,-770.1,0.00019726,2]
[387197532,1758637835745,-631.0,0.00019726,2]
[387197533,1758637835757,-849.96,0.00019726,2]
[387197534,1758637835770,-480.0,0.00019726,2]
[387197535,1758637835784,-1321.9,0.00019726,2]
[387197536,1758637835796,-273.35057942,0.00019726,2]
[387197537,1758637835807,-151.0,0.00019726,2]
[387197538,1758637835819,-151.0,0.00019726,2]
[387197539,1758637835830,-530.29,0.00019726,2]
[387197540,1758637835842,-480.0,0.00019726,2]
[387197541,1758637835854,-480.0,0.00019726,2]
[387197542,1758637835866,-480.0,0.00019726,2]
[387197543,1758637835878,-679.28,0.00019726,2]
[387197544,1758637835890,-151.0,0.00019726,2]
[387197545,1758637835901,-151.0,0.00019726,2]
[387197546,1758637835913,-217.997884,0.00019726,2]
[387197547,1758637835925,-217.997884,0.00019726,2]
[387197548,1758637835937,-217.997884,0.00019726,2]
[387197549,1758637835949,-217.997884,0.00019726,2]
[387197550,1758637835961,-480.0,0.00019726,2]
[387197551,1758637835973,-502.47,0.00019726,2]
[387197552,1758637835985,-480.0,0.00019726,2]
[387197553,1758637835996,-151.0,0.00019726,2]
[387197554,1758637836008,-151.0,0.00019726,2]
[387197555,1758637836019,-154.249772,0.00019726,2]
[387197556,1758637836031,-500.81537013,0.00019795,2]
[387197557,1758637836044,-500.0,0.00019795,2]
[387197558,1758637836055,-301.0,0.000198,2]
[387197559,1758637836066,-374.37921003,0.00019814,2]
[387197560,1758637836078,-151.0,0.000199,2]
[387197561,1758637836089,-4963.21170526,0.000199,2]
[387197562,1758637836101,-158.878261,0.0001992,2]
[387197563,1758637836113,-168.0,0.00019929,2]
[387197564,1758637836125,-151.0,0.0002,2]
[387197565,1758637836136,-480.0,0.0002,2]
[387197566,1758637836148,-1085.77,0.0002,2]
[387197567,1758637836160,-151.0,0.0002,2]
[387197568,1758637836173,-480.0,0.0002,2]
[387197569,1758637836184,-151.0,0.0002,2]
[387197570,1758637836196,-461.46384116,0.0002,2]
[387197571,1758637836208,-480.0,0.0002,2]
[387197572,1758637836220,-480.0,0.0002,2]
[387197573,1758637836231,-192.44332133,0.0002,2]
[387197574,1758637836244,-151.0,0.0002,2]
[387197575,1758637836257,-151.0,0.0002,2]
[387197576,1758637836268,-199.08738968,0.0002,2]
[387197577,1758637836283,-151.0,0.0002,2]
[387197578,1758637836294,-229.12008207,0.0002,2]
[387197579,1758637836306,-151.0,0.0002,2]
[387197580,1758637836318,-195.75892033,0.0002,2]
[387197581,1758637836329,-480.0,0.0002,2]
[387197582,1758637836342,-7280.66,0.0002,2]
[387197583,1758637836355,-151.24772661,0.0002,2]
[387197584,1758637836365,-151.0,0.0002,2]
[387197585,1758637836375,-188.80777571,0.0002,2]
[387197586,1758637836513,-522.43,0.0002,2]
[387197587,1758637836524,-690.73,0.0002,2]
[387197588,1758637836534,-480.0,0.0002,2]
[387197589,1758637836544,-151.0,0.0002,2]
[387197590,1758637836553,-151.62781402,0.0002,2]
[387197591,1758637836563,-158.1905021,0.0002,2]
[387197592,1758637836573,-151.28932422,0.0002,2]
[387197593,1758637836582,-1093.76,0.0002,2]
[387197594,1758637836592,-480.0,0.0002,2]
[387197595,1758637836601,-3624.1,0.0002,2]
[387197596,1758637836611,-770.1,0.0002,2]
[387197597,1758637836621,-631.0,0.0002,2]
[387197598,1758637836630,-849.96,0.0002,2]
[387197599,1758637836639,-480.0,0.0002,2]
[387197600,1758637836648,-1321.9,0.0002,2]
[387197601,1758637836658,-3000.0,0.0002,2]
[387197602,1758637836668,-530.29,0.0002,2]
[387197603,1758637836678,-480.0,0.0002,2]
[387197604,1758637836687,-480.0,0.0002,2]
[387197605,1758637836697,-480.0,0.0002,2]
[387197606,1758637836707,-679.28,0.0002,2]
[387197607,1758637836716,-480.0,0.0002,2]
[387197608,1758637836725,-151.0,0.0002,2]
[387197609,1758637836735,-502.47,0.0002,2]
[387197610,1758637836745,-480.0,0.0002,2]
[387197611,1758637836755,-151.0,0.0002,2]
[387197612,1758637836764,-151.0,0.0002,2]
[387197613,1758637836775,-151.0,0.0002,2]
[387197614,1758637836786,-151.19848737,0.0002,2]
[387197615,1758637836797,-151.4935411,0.0002,2]
[387197616,1758637836807,-151.0,0.0002,2]
[387197617,1758637836817,-151.0,0.0002,2]
[387197618,1758637836827,-4301.3395332,0.00020051,2]
[387197619,1758637836838,-217.997884,0.00020051,2]
[387197620,1758637836849,-217.997884,0.00020051,2]
[387197621,1758637836859,-217.997884,0.00020051,2]
[387197622,1758637836870,-217.997884,0.00020051,2]
[387197623,1758637836879,-151.0,0.00020051,2]
[387197624,1758637836888,-151.0,0.00020051,2]
[387197625,1758637836898,-800.0,0.00020086,2]
[387197626,1758637836907,-10027.86007902,0.00020099,2]
[387197627,1758637836917,-150.0,0.000201,10]
[387197628,1758637836926,-800.0,0.00020127,2]
[387197629,1758637836936,-800.0,0.00020162,2]
[387197630,1758637836945,-500.0,0.00020173,2]
[387197631,1758637836955,-500.0,0.00020173,2]
[387197632,1758637836964,-514.16553402,0.00020173,2]
[387197633,1758637836974,-500.0,0.00020173,2]
[387197634,1758637836984,-500.0,0.00020173,2]
[387197635,1758637836993,-500.0,0.00020173,2]
[387197636,1758637837003,-233.58652103,0.00020196,2]
[387197637,1758637837013,-160.0,0.00020196,2]
[387197638,1758637837022,-160.0,0.00020196,2]
[387197639,1758637837031,-160.0,0.00020196,2]
[387197640,1758637837041,-160.0,0.00020196,2]
[387197641,1758637837052,-417.15472785,0.00020196,2]
[387197642,1758637837061,-480.0,0.00020199,2]
[387197643,1758637837070,-331.0257373,0.00020199,2]
[387197644,1758637837079,-480.0,0.00020199,2]
[387197645,1758637837089,-480.0,0.00020199,2]
[387197646,1758637837099,-485.5152354,0.00020199,2]
[387197647,1758637837108,-480.0,0.00020199,2]
[387197648,1758637837117,-343.32185004,0.00020199,2]
[387197649,1758637837127,-480.0,0.00020199,2]
[387197650,1758637837136,-480.0,0.00020199,2]
[387197651,1758637837146,-480.0,0.00020199,2]
[387197652,1758637837155,-480.0,0.00020199,2]
[387197653,1758637837164,-480.0,0.00020199,2]
[387197654,1758637837174,-480.0,0.00020199,2]
[387197655,1758637837185,-480.0,0.00020199,2]
[387197656,1758637837195,-481.96798145,0.00020199,2]
[387197657,1758637837205,-480.0,0.00020199,2]
[387197658,1758637837215,-453.27641572,0.00020199,2]
[387197659,1758637837225,-483.57557525,0.00020199,2]
[387197660,1758637837234,-513.45045931,0.00020199,2]
[387197661,1758637837244,-480.0,0.00020199,2]
[387197662,1758637837255,-480.0,0.00020199,2]
[387197663,1758637837266,-485.61859037,0.00020199,2]
[387197664,1758637837275,-480.0,0.00020199,2]
[387197665,1758637837284,-367.1047769,0.00020199,2]
[387197666,1758637837294,-480.0,0.00020199,2]
[387197667,1758637837303,-480.0,0.00020199,2]
[387197668,1758637837313,-480.0,0.00020199,2]
[387197669,1758637837323,-480.0,0.00020199,2]
[387197670,1758637837332,-481.46850948,0.00020199,2]
[387197671,1758637837342,-483.53428653,0.00020199,2]
[387197672,1758637837351,-480.0,0.00020199,2]
[387197673,1758637837361,-480.0,0.00020199,2]
[387197674,1758637837371,-480.0,0.00020199,2]
[387197675,1758637837381,-480.0,0.00020199,2]
[387197676,1758637837390,-480.0,0.00020199,2]
[387197677,1758637837399,-32.81932203,0.00020199,2]
[387197678,1758637837417,-472.33288586,0.00020199,2]
[387197679,1758637837427,-480.0,0.00020199,2]
[387197680,1758637837436,-480.0,0.00020199,2]
[387197681,1758637837446,-480.0,0.00020199,2]
[387197682,1758637837455,-480.0,0.00020199,2]
[387197683,1758637837467,-480.0,0.00020199,2]
[387197686,1758637837476,-104.45072688,0.00020199,2]
[387197688,1758637837488,-324.08921439,0.00020199,2]
[387197689,1758637837503,-51.46005873,0.00020199,2]
[387197690,1758637837514,-480.0,0.00020199,2]
[387197691,1758637837523,-480.0,0.00020199,2]
[387197692,1758637837533,-480.0,0.00020199,2]
[387197693,1758637837543,-480.0,0.00020199,2]
[387197694,1758637837553,-480.0,0.00020199,2]
[387197695,1758637837563,-480.0,0.00020199,2]
[387197696,1758637837572,-480.0,0.00020199,2]
[387197697,1758637837582,-480.0,0.00020199,2]
[387197698,1758637837591,-480.0,0.00020199,2]
[387197699,1758637837601,-480.0,0.00020199,2]
[387197700,1758637837610,-480.0,0.00020199,2]
[387197701,1758637837619,-480.0,0.00020199,2]
[387197702,1758637837629,-480.0,0.00020199,2]
[387197703,1758637837638,-480.0,0.00020199,2]
[387197704,1758637837647,-480.0,0.00020199,2]
[387197705,1758637837656,-278.07121621,0.00020199,2]
[387197706,1758637837667,-480.0,0.00020199,2]
[387197707,1758637837676,-480.0,0.00020199,2]
[387197708,1758637837686,-480.0,0.00020199,2]
[387197709,1758637837696,-480.0,0.00020199,2]
[387197710,1758637837705,-480.0,0.00020199,2]
[387197712,1758637837715,-500.0,0.00020199,2]
[387197714,1758637837725,-480.0,0.00020199,2]
[387197716,1758637837734,-480.0,0.00020199,2]
[387197718,1758637837744,-480.0,0.00020199,2]
[387197720,1758637837753,-480.0,0.00020199,2]
[387197722,1758637837763,-480.0,0.00020199,2]
[387197724,1758637837772,-480.0,0.00020199,2]
[387197726,1758637837786,-480.0,0.00020199,2]
[387197728,1758637837795,-480.0,0.00020199,2]
[387197730,1758637837805,-480.0,0.00020199,2]
[387197732,1758637837813,-480.0,0.00020199,2]
[387197734,1758637837825,-480.0,0.00020199,2]
[387197736,1758637837835,-480.0,0.00020199,2]
[387197738,1758637837844,-481.53618836,0.00020199,2]
[387197740,1758637837854,-480.0,0.00020199,2]
[387197742,1758637837864,-480.0,0.00020199,2]
[387197744,1758637837875,-469.85233894,0.00020199,2]
[387197746,1758637837884,-480.0,0.00020199,2]
[387197748,1758637837893,-480.0,0.00020199,2]
[387197750,1758637837903,-521.54936565,0.00020199,2]
[387197752,1758637837913,-480.0,0.00020199,2]
[387197754,1758637837923,-480.0,0.00020199,2]
[387197756,1758637837932,-480.0,0.00020199,2]
[387197758,1758637837943,-480.0,0.00020199,2]
[387197760,1758637837953,-480.0,0.00020199,2]
[387197762,1758637837962,-480.0,0.00020199,2]
[387197765,1758637837971,-480.0,0.00020199,2]
[387197767,1758637837981,-480.0,0.00020199,2]
[387197768,1758637837991,-480.0,0.00020199,2]
[387197771,1758637838001,-486.96535845,0.00020199,2]
[387197773,1758637838010,-480.0,0.00020199,2]
[387197774,1758637838020,-480.0,0.00020199,2]
[387197776,1758637838029,-480.0,0.00020199,2]
[387197778,1758637838038,-480.0,0.00020199,2]
[387197781,1758637838048,-480.0073925,0.00020199,2]
[387197782,1758637838057,-480.0,0.00020199,2]
[387197784,1758637838066,-480.0,0.00020199,2]
[387197786,1758637838075,-480.0,0.00020199,2]
[387197788,1758637838085,-403.9971183,0.00020199,2]
[387197790,1758637838094,-480.0,0.00020199,2]
[387197792,1758637838104,-132.97948404,0.00020199,2]
[387197795,1758637838117,-347.02051596,0.00020199,2]
[387197797,1758637838125,-266.99722111,0.00020199,2]
[387197798,1758637838456,-1038.05082755,0.00019166,2]
[387197799,1758637838466,-500.0,0.00019166,2]